lending/lending_fUSD_20240130
["ID","MTS","AMOUNT","RATE_DAILY","PERIOD"]
[313031102,1706650243283,-2608.43218206,0.00037699,2]
[313031103,1706650243294,-621.94,0.00037699,2]
[313031110,1706650243356,-323.76721438,0.00035,2]
[313031112,1706650243365,-132.20792356,0.00037699,2]
[313031114,1706650243376,-12689.71103533,0.00037699,2]
[313031119,1706650243406,-323.76721438,0.00035,2]
[313031121,1706650243416,-498.72296109,0.00037699,2]
[313031140,1706650244148,-291.2980722,0.00035,2]
[313031141,1706650244625,-211.65746237,0.00030685,5]
[313031142,1706650244634,-151.42752341,0.000327,21]
[313031143,1706650244643,-32.46914218,0.00035,2]
[313031144,1706650244652,-323.76721438,0.00035,2]
[313031145,1706650244661,-323.76721438,0.00035,2]
[313031146,1706650244670,-323.76721438,0.00035,2]
[313031147,1706650244678,-323.76721438,0.00035,2]
[313031148,1706650244687,-323.76721438,0.00035,2]
[313031149,1706650244696,-57.35602214,0.00035,2]
[313031150,1706650244728,-266.41119224,0.00035,2]
[313031151,1706650244736,-323.76721438,0.00035,2]
[313031152,1706650244745,-323.76721438,0.00035,2]
[313031153,1706650244754,-323.76721438,0.00035,2]
[313031154,1706650244764,-323.76721438,0.00035,2]
[313031155,1706650244773,-323.76721438,0.00035,2]
[313031156,1706650244781,-323.76721438,0.00035,2]
[313031157,1706650244790,-323.76721438,0.00035,2]
[313031158,1706650244799,-323.76721438,0.00035,2]
[313031160,1706650244808,-323.76721438,0.00035,2]
[313031161,1706650244817,-323.76721438,0.00035,2]
[313031163,1706650244826,-323.76721438,0.00035,2]
[313031164,1706650244835,-323.76721438,0.00035,2]
[313031165,1706650244843,-109.4785259,0.00035,2]
[313031171,1706650244922,-214.28868848,0.00035,2]
[313031173,1706650244931,-323.76721438,0.00035,2]
[313031175,1706650244940,-323.76721438,0.00035,2]
[313031176,1706650244949,-323.76721438,0.00035,2]
[313031178,1706650244958,-323.76721438,0.00035,2]
[313031179,1706650244967,-323.76721438,0.00035,2]
[313031180,1706650244975,-323.76721438,0.00035,2]
[313031181,1706650244984,-323.76721438,0.00035,2]
[313031182,1706650244993,-323.76721438,0.00035,2]
[313031183,1706650245001,-323.76721438,0.00035,2]
[313031184,1706650245010,-120.03536446,0.00037699,2]
[313031185,1706650245021,-18052.25323332,0.00037699,2]
[313031186,1706650245054,-323.76721438,0.00035,2]
[313031187,1706650245064,-3738.23936364,0.00037699,2]
[313031188,1706650245075,-342.49748502,0.00037699,2]
[313031189,1706650245087,-300.175,0.00037699,2]
[313031190,1706650245337,-323.76721438,0.00035,2]
[313031191,1706650245346,-74.33231049,0.00035,2]
[313031192,1706650245358,-249.43490389,0.00035,2]
[313031193,1706650245367,-323.76721438,0.00035,2]
[313031194,1706650245375,-2000.0,0.00035955,2]
[313031195,1706650245384,-1064.14173888,0.00037699,2]
[313031196,1706650245393,-3259.33098555,0.000377,3]
[313031197,1706650245402,-522.84473035,0.00037764,11]
[313031198,1706650245415,-4050.18796712,0.0003788,2]
[313031199,1706650245424,-236.68057658,0.00037899,2]
[313031200,1706650245433,-177.62911183,0.00037899,2]
[313031201,1706650245442,-1207.76511557,0.000379,7]
[313031202,1706650246168,-1208.04594105,0.00032799,2]
[313031203,1706650246177,-3288.72019724,0.000379,7]
[313031204,1706650246187,-5162.26013904,0.000379,3]
[313031205,1706650246199,-399.67000005,0.000379,3]
[313031206,1706650246308,-578.27941501,0.000379,3]
[313031207,1706650246332,-8176.14671719,0.000379,3]
[313031268,1706650789706,-157.39860552,0.00022699,2]
[313031269,1706650789727,-150.0,0.00022699,2]
[313031270,1706650789749,-68759.032,0.000227,2]
[313031271,1706650789770,-152053.63819448,0.000228,2]
[313031272,1706650800637,-68566.43060552,0.000228,2]
[313031273,1706650800657,-500.0,0.000228,2]
[313031303,1706651432219,-150.0,0.00023,2]
[313031304,1706651432229,-3130.51271341,0.00024999,2]
[313031305,1706651432239,-272.41598701,0.00025,2]
[313031306,1706651432248,-450.0,0.00025,3]
[313031307,1706651432258,-935.98268242,0.00025,2]
[313031308,1706651432267,-202.54115654,0.00026983,2]
[313031309,1706651432276,-304.2742515,0.00026984,2]
[313031310,1706651432286,-1587.92031382,0.00026985,2]
[313031311,1706651432297,-300.0,0.00026989,2]
[313031312,1706651432583,-500.0,0.00027,3]
[313031313,1706651432592,-690.73183614,0.00028,2]
[313031314,1706651432602,-550.0,0.00029,3]
[313031315,1706651432612,-175.93774684,0.000298,2]
[313031316,1706651432621,-500.0,0.000299,2]
[313031317,1706651432631,-1666.16,0.000299,2]
[313031318,1706651432640,-280.85,0.00029909,2]
[313031319,1706651432649,-200.0,0.00029976,2]
[313031320,1706651432660,-150.0,0.00029976,2]
[313031321,1706651432669,-150.293,0.00029976,2]
[313031322,1706651432678,-150.0,0.00029976,2]
[313031323,1706651432688,-690.14449221,0.00029999,2]
[313031324,1706651432698,-710.80158049,0.00029999,4]
[313031325,1706651432707,-4076.50153154,0.0003,2]
[313031326,1706651432716,-155.0,0.0003,2]
[313031327,1706651432726,-19084.94415689,0.0003,4]
[313031328,1706651432740,-2647.79652574,0.0003,4]
[313031329,1706651432749,-375.38823797,0.0003,2]
[313031330,1706651432759,-24427.29915462,0.0003,4]
[313031331,1706651432785,-459.75323735,0.0003,4]
[313031332,1706651432797,-13587.08764,0.0003,4]
[313031333,1706651432809,-1922.96638505,0.0003,4]
[313031334,1706651432822,-326.43046132,0.0003,4]
[313031335,1706651432924,-32422.81940694,0.0003,4]
[313031336,1706651432934,-257.145635,0.0003,4]
[313031337,1706651432943,-600.0,0.00031,3]
[313031338,1706651432953,-204.0,0.00031297,2]
[313031339,1706651432962,-150.0,0.00031324,2]
[313031340,1706651432971,-6235.82,0.00031491,2]
[313031341,1706651432980,-250.0,0.0003161,2]
[313031342,1706651432990,-23900.0,0.0003164,2]
[313031343,1706651432999,-1618.11,0.00031749,2]
[313031344,1706651433009,-607.18,0.000318,20]
[313031345,1706651433018,-549.66,0.000318,2]
[313031346,1706651433027,-2377.4,0.000318,2]
[313031347,1706651433036,-155.0,0.00032,2]
[313031348,1706651433046,-250.0,0.00032114,2]
[313031349,1706651433055,-280.85,0.00032173,2]
[313031350,1706651433064,-3682.87510353,0.00032795,4]
[313031351,1706651433073,-500.0,0.00032877,2]
[313031352,1706651433083,-174.34,0.00032954,2]
[313031353,1706651433093,-150.0,0.00032976,2]
[313031354,1706651433102,-157.67511373,0.000334,4]
[313031355,1706651433111,-636.15843273,0.00034,4]
[313031356,1706651433121,-150.0,0.00034074,7]
[313031357,1706651433130,-256.81224917,0.00034107,7]
[313031358,1706651433139,-280.85,0.00034437,2]
[313031359,1706651433148,-180.0,0.00034497,2]
[313031360,1706651433157,-176.98657795,0.00034576,4]
[313031361,1706651433166,-21177.39475328,0.00034754,7]
[313031362,1706651435457,-1904.53326151,0.00025,2]
[313031363,1706651435467,-5319.02777131,0.00034754,7]
[313031364,1706651435522,-1127.3767494,0.00034754,7]
[313031365,1706651435537,-8430.79435941,0.00034754,7]
[313031366,1706651435599,-1077.6478502,0.00034754,7]
[313031367,1706651435608,-215.31491049,0.00034764,10]
[313031368,1706651435620,-8310.39537342,0.00034764,10]
[313031369,1706651435631,-3556.76371237,0.00034764,10]
[313031374,1706651435674,-18710.60512909,0.00034764,10]
[313031401,1706651438218,-75638.3942383,0.00034764,10]
[313031402,1706651438230,-93568.52663633,0.00034764,10]
[313031403,1706651438239,-344.75862881,0.0003479,7]
[313031404,1706651438247,-7426.44829672,0.0003489,7]
[313031405,1706651438256,-8986.52599533,0.000349,4]
[313031406,1706651438265,-186.13847865,0.00035,4]
[313031407,1706651438275,-155.0,0.00035,4]
[313031408,1706651438284,-155.0,0.00035,2]
[313031409,1706651438294,-155.0,0.00035,2]
[313031410,1706651438303,-3713.22414836,0.00035057,7]
[313031411,1706651438312,-213.388761,0.00035067,5]
[313031412,1706651438321,-708.603712,0.00035067,5]
[313031413,1706651438330,-204.0,0.00035398,10]
[313031414,1706651438339,-14852.8965934,0.0003549,8]
[313031415,1706651438349,-153.98,0.000355,3]
[313031416,1706651438358,-744.65,0.000355,3]
[313031417,1706651438367,-744.65,0.000355,3]
[313031418,1706651438376,-744.65,0.000355,3]
[313031419,1706651438385,-532.64835104,0.000355,3]
[313031420,1706651438400,-212.00164896,0.000355,3]
[313031421,1706651438409,-744.65,0.000355,3]
[313031422,1706651438419,-744.65,0.000355,3]
[313031423,1706651438428,-744.65,0.000355,3]
[313031424,1706651438437,-744.65,0.000355,3]
[313031425,1706651438446,-744.65,0.000355,3]
[313031426,1706651438456,-744.65,0.000355,3]
[313031427,1706651438465,-744.65,0.000355,3]
[313031428,1706651438474,-744.65,0.000355,3]
[313031429,1706651438484,-744.65,0.000355,3]
[313031430,1706651438493,-744.65,0.000355,3]
[313031431,1706651438502,-744.65,0.000355,3]
[313031432,1706651438512,-744.65,0.000355,3]
[313031433,1706651438521,-744.65,0.000355,3]
[313031434,1706651438531,-744.65,0.000355,3]
[313031435,1706651438541,-744.65,0.000355,3]
[313031436,1706651438550,-744.65,0.000355,3]
[313031438,1706651438559,-11139.6724451,0.00035606,8]
[313031440,1706651438569,-10000.0,0.00035616,2]
[313031442,1706651438578,-519.8277574,0.00035628,2]
[313031444,1706651438587,-1793.51,0.00035738,5]
[313031446,1706651438596,-1000.0,0.000358,2]
[313031448,1706651438605,-3713.22414836,0.0003598,8]
[313031450,1706651438614,-156.72,0.0003599,2]
[313031452,1706651438623,-382.40121115,0.00036,4]
[313031454,1706651438633,-152.49041135,0.00036005,2]
[313031456,1706651438643,-434.88877985,0.00036005,2]
[313031458,1706651438653,-1777.19,0.00036112,5]
[313031460,1706651438662,-3713.22414836,0.00036572,9]
[313031462,1706651438671,-1782.38,0.00036582,5]
[313031464,1706651438680,-280.85,0.00036701,2]
[313031466,1706651438689,-482.28094301,0.0003676,4]
[313031468,1706651438698,-7426.44829672,0.00036905,10]
[313031470,1706651438706,-677.58952801,0.00036914,2]
[313031472,1706651438718,-8014.45047199,0.00036914,2]
[313031474,1706651438727,-11139.6724451,0.00036924,10]
[313031476,1706651438735,-10000.0,0.00036934,2]
[313031478,1706651438744,-310.85850814,0.00037,4]
[313031480,1706651438753,-344.7586288,0.00037077,8]
[313031482,1706651438762,-3713.22414836,0.00037124,10]
[313031484,1706651438771,-1788.77,0.00037134,5]
[313031485,1706651438782,-519.82775725,0.00037295,2]
[313031486,1706651438793,-5445.59253922,0.00037581,10]
[313031487,1706651438812,-1000.0,0.00037581,10]
[313031488,1706651438824,-4042.566642,0.00037581,10]
[313031489,1706651438835,-7442.804616,0.00037581,10]
[313031490,1706651438846,-3201.23736895,0.00037581,10]
[313031522,1706651440976,-363.143,0.00037581,10]
[313031530,1706651442908,-591.00293679,0.00037581,10]
[313031536,1706651443263,-272.12823336,0.0003758,4]
[313031537,1706651443273,-5276.9675278,0.00037581,10]
[313031538,1706651443317,-152.49041135,0.00036005,2]
[313031539,1706651443327,-7009.33153355,0.00037581,10]
[313031540,1706651443377,-2385.12454143,0.00037581,10]
[313031552,1706651446508,-255.3543308,0.0003,2]
[313031553,1706651477477,155.0,0.000228,2]
[313031556,1706651512410,1683.88368618,0.00021,4]
[313031557,1706651648876,6783.21181678,0.0002,2]
[313031558,1706651650677,122889.0,0.0002277,2]
[313031565,1706651733899,-1175.82776787,0.0002293,2]
[313031566,1706651733921,-761.84459393,0.0002293,2]
[313031567,1706651733941,-824.5484046,0.0002293,2]
[313031568,1706651733963,-561.14160726,0.0002293,2]
[313031569,1706651733983,-208.3312263,0.0002293,2]
[313031570,1706651734005,-1864468.30640004,0.00023,2]
[313031571,1706652151230,3196.50427923,0.00021852,2]
[313031575,1706652528911,364.63,0.00021096,2]
[313031576,1706652622031,151.6518522,0.00021075,2]
[313031585,1706652631370,-1099.63523633,0.00022646,2]
[313031586,1706652631405,-757.19192717,0.00022646,2]
[313031587,1706652631414,-413.15022701,0.00022647,2]
[313031588,1706652631424,-500.0,0.00022648,2]
[313031589,1706652631433,-215.98685375,0.00022741,2]
[313031590,1706652631442,-150.0,0.00022761,2]
[313031591,1706652631451,-997.75509607,0.00022762,2]
[313031592,1706652631463,-316.76816214,0.00022762,2]
[313031593,1706652631531,-699.19801085,0.00022762,2]
[313031594,1706652631602,-8508.90636296,0.00022762,2]
[313031595,1706652631611,-502.41371894,0.00022763,2]
[313031596,1706652631621,-232.48962599,0.00022764,2]
[313031597,1706652631630,-1062.99279892,0.00022764,2]
[313031598,1706652631639,-8392.44999544,0.00022764,2]
[313031599,1706652631662,-943.88556445,0.00022764,2]
[313031600,1706652631674,-3702.78399334,0.00022764,2]
[313031601,1706652631683,-2143.62450616,0.00022764,2]
[313031602,1706652631692,-140.87763665,0.00022764,2]
[313031614,1706652637437,-488.75743333,0.00022764,2]
[313031615,1706652637492,-417.91841494,0.00022764,2]
[313031616,1706652637502,-155.24461793,0.00022764,2]
[313031617,1706652637511,-199.65296929,0.00022764,2]
[313031618,1706652637522,-1319.60441188,0.00022764,2]
[313031619,1706652637532,-155.0,0.00022764,2]
[313031620,1706652637541,-46.24521269,0.00022764,2]
[313031621,1706652637553,-1086.93189934,0.00022764,2]
[313031622,1706652637581,-72.90169254,0.00022764,2]
[313031623,1706652637591,-159.12735678,0.00022764,2]
[313031624,1706652637601,-162.10429849,0.00022764,2]
[313031625,1706652637611,-155.0,0.00022764,2]
[313031626,1706652637622,-385.38788306,0.00022764,2]
[313031627,1706652637632,-2158.36856913,0.00022764,2]
[313031628,1706652637669,-877.4663099,0.00022764,2]
[313031629,1706652637679,-235.61013094,0.00022764,2]
[313031630,1706652637689,-796.73328807,0.00022764,2]
[313031631,1706652637701,-1828.75600629,0.00022764,2]
[313031632,1706652637711,-980.61435315,0.00022764,2]
[313031634,1706652637722,-694.270008,0.00022764,2]
[313031636,1706652637734,-3779.60755399,0.00022764,2]
[313031638,1706652637743,-698.29129307,0.00022765,2]
[313031640,1706652637752,-364.82931243,0.00022765,2]
[313031642,1706652637762,-3670.10259608,0.00022766,2]
[313031649,1706652640060,-423.6899094,0.00022766,2]
[313031650,1706652640071,-1115.433276,0.00022766,2]
[313031651,1706652642518,-1151.04641137,0.00022766,2]
[313031652,1706652642565,-400.0,0.00022766,2]
[313031653,1706652642576,-378.20715597,0.00022766,2]
[313031654,1706652642588,-572.54127002,0.00022766,2]
[313031655,1706652642622,-72256.7281956,0.00022766,2]
[313031656,1706652642632,-249.0831616,0.00022768,2]
[313031657,1706652642641,-200.0,0.00022771,2]
[313031658,1706652642650,-155.0,0.000228,2]
[313031659,1706652642659,-8220.54,0.000228,2]
[313031660,1706652642668,-309.27,0.000228,2]
[313031661,1706652642677,-150.99,0.000228,2]
[313031662,1706652642686,-607.18,0.000229,2]
[313031663,1706652642695,-632.95757231,0.000229,2]
[313031664,1706652642704,-210.97744404,0.0002299,2]
[313031665,1706652642714,-176.98657795,0.00022998,2]
[313031666,1706652642723,-456.73726774,0.00022998,2]
[313031667,1706652642732,-2377.4,0.00022998,2]
[313031668,1706652642742,-3682.87510353,0.00022999,4]
[313031669,1706652642751,-61861.50901591,0.00023,2]
[313031670,1706652642763,-1230.11499396,0.00023,2]
[313031672,1706652642794,-2936.32,0.00023,2]
[313031679,1706652645400,-768.0,0.00023,2]
[313031680,1706652645414,-551.28542087,0.00023,2]
[313031681,1706652645427,-267.12499998,0.00023,2]
[313031682,1706652645439,-1004.61483458,0.00023,2]
[313031683,1706652645450,-1335.57189952,0.00023,2]
[313031684,1706652645468,-47390.58438487,0.00023,2]
[313031685,1706652645481,-128101.06360621,0.00023,2]
[313031686,1706652645493,-20055.07270493,0.00023,2]
[313031687,1706652645526,-3029.35537805,0.00023,2]
[313031688,1706652645538,-335.30570427,0.00023,2]
[313031689,1706652645561,-495.06200404,0.00023,2]
[313031690,1706652645573,-1338.86893487,0.00023,2]
[313031691,1706652645584,-473.05077416,0.00023,2]
[313031692,1706652645603,-2550.0,0.00023,2]
[313031694,1706652658238,208.16758457,0.00021848,2]
[313031696,1706652687159,1091.63490583,0.00022077,2]
[313031708,1706652861324,167.98,0.0002216,2]
[313031709,1706652866676,176.73,0.0002216,10]
[313031715,1706652919501,250.0,0.00022293,2]
[313031716,1706652935168,2000.0,0.00022278,2]
[313031719,1706653064571,-155.0,0.00022524,2]
[313031720,1706653064591,-3050.73726292,0.00022524,2]
[313031721,1706653064610,-1856.8271635,0.00022524,2]
[313031722,1706653064640,-2787.3959821,0.00022525,2]
[313031723,1706653064663,-413.15022701,0.00022525,2]
[313031724,1706653064684,-250.0,0.00022532,2]
[313031725,1706653064704,-567.0349638,0.0002255,2]
[313031726,1706653064724,-6733.05271781,0.00022648,2]
[313031727,1706653064744,-14455.68821814,0.0002265,2]
[313031728,1706653064765,-940.66361279,0.00022764,2]
[313031729,1706653064786,-10664.67786704,0.00022764,2]
[313031730,1706653064806,-282.89706329,0.00022764,2]
[313031731,1706653064831,-155.0,0.0002288,2]
[313031732,1706653064850,-567.03496381,0.00022894,2]
[313031733,1706653064871,-24033.5996,0.00022894,2]
[313031734,1706653064892,-733.95306611,0.00022896,2]
[313031735,1706653064913,-500.0,0.000229,2]
[313031736,1706653064935,-215.44803519,0.00022974,2]
[313031737,1706653064956,-4546.15556741,0.00022993,2]
[313031738,1706653064976,-287.39114961,0.00022993,2]
[313031739,1706653064998,-155.79395359,0.00022993,2]
[313031740,1706653065020,-537.20957409,0.00022993,2]
[313031741,1706653065041,-377.94963997,0.00022994,2]
[313031742,1706653065063,-221466.3418653,0.00022994,2]
[313031743,1706653065083,-155.73610294,0.00022994,2]
[313031744,1706653065103,-2895.79962616,0.00022994,2]
[313031745,1706653065123,-156.93056967,0.00022994,2]
[313031746,1706653065142,-157.53276897,0.00022995,2]
[313031747,1706653065163,-525.02591322,0.00022995,2]
[313031748,1706653065184,-18371.73713123,0.00022995,2]
[313031749,1706653065205,-254.81428858,0.00022995,2]
[313031750,1706653065225,-281.29640367,0.00022995,2]
[313031751,1706653065245,-239.88481281,0.00022995,2]
[313031752,1706653065266,-967.43524386,0.00022995,2]
[313031753,1706653065289,-155.27174667,0.00022995,2]
[313031754,1706653065308,-159.56022332,0.00022995,2]
[313031755,1706653065328,-542.14027525,0.00022995,2]
[313031756,1706653065349,-175.90987974,0.00022995,2]
[313031757,1706653065369,-235.79761048,0.00022995,2]
[313031758,1706653065388,-162.94288834,0.00022995,2]
[313031759,1706653065410,-353.17177551,0.00022995,2]
[313031760,1706653065673,-508.95671337,0.00022995,2]
[313031761,1706653065692,-157.49371138,0.00022995,2]
[313031762,1706653065711,-285.73177074,0.00022995,2]
[313031763,1706653065730,-156.59218636,0.00022995,2]
[313031764,1706653065749,-263.54410828,0.00022995,2]
[313031765,1706653065768,-268.63381613,0.00022995,2]
[313031766,1706653065788,-2629.74576066,0.00022995,2]
[313031767,1706653065807,-303.60602794,0.00022995,2]
[313031768,1706653065826,-214.58637741,0.00022995,2]
[313031769,1706653065847,-400.0,0.00022995,2]
[313031770,1706653065867,-155.0,0.00022996,2]
[313031771,1706653065888,-155.70956964,0.00022996,2]
[313031772,1706653065908,-202.51790807,0.00022996,2]
[313031773,1706653065927,-1315.59863163,0.00022996,2]
[313031774,1706653065947,-202.29991364,0.00022996,2]
[313031775,1706653065966,-628.4192422,0.00022996,2]
[313031776,1706653065986,-1257.66975103,0.00022996,2]
[313031777,1706653066006,-1837.07226017,0.00022996,2]
[313031778,1706653066025,-155.0,0.00022997,2]
[313031779,1706653066046,-303.98665931,0.00022997,2]
[313031780,1706653066066,-234.15032395,0.00022997,2]
[313031781,1706653066087,-155.0,0.00022997,2]
[313031782,1706653066106,-207.29486363,0.00022997,2]
[313031783,1706653066125,-155.35824797,0.00022997,2]
[313031784,1706653066145,-647.07582193,0.00022997,2]
[313031785,1706653066163,-319.36834875,0.00022997,2]
[313031786,1706653066183,-155.98983646,0.00022997,2]
[313031787,1706653066202,-248.82203226,0.00022997,2]
[313031788,1706653066221,-155.3699649,0.00022997,2]
[313031789,1706653066244,-155.39805555,0.00022997,2]
[313031790,1706653066265,-167.38310093,0.00022997,2]
[313031791,1706653066294,-155.98760561,0.00022997,2]
[313031792,1706653066314,-1142.90256945,0.00022997,2]
[313031793,1706653066334,-197.17718022,0.00022997,2]
[313031794,1706653066356,-233.3484501,0.00022997,2]
[313031795,1706653066378,-171.34286928,0.00022997,2]
[313031796,1706653066398,-180.44694873,0.00022997,2]
[313031797,1706653066418,-177.94121261,0.00022997,2]
[313031798,1706653066438,-156.77003848,0.00022997,2]
[313031799,1706653066457,-371.63566507,0.00022997,2]
[313031800,1706653066477,-156.45074347,0.00022997,2]
[313031801,1706653066497,-267.83507573,0.00022997,2]
[313031802,1706653066516,-214.15830901,0.00022997,2]
[313031803,1706653066537,-254.44119129,0.00022997,2]
[313031804,1706653066557,-1081.98588942,0.00022997,2]
[313031805,1706653066578,-1117.33027011,0.00022997,2]
[313031806,1706653066598,-4641.49847148,0.00022997,2]
[313031807,1706653066617,-285.81614181,0.00022997,2]
[313031808,1706653066638,-858.79052331,0.00022997,2]
[313031809,1706653066657,-396.53188178,0.00022997,2]
[313031810,1706653066677,-362.63221903,0.00022997,2]
[313031811,1706653066697,-158.5483201,0.00022997,2]
[313031812,1706653066718,-873.90332348,0.00022997,2]
[313031813,1706653066739,-245.54677836,0.00022997,2]
[313031814,1706653066760,-2135.19370594,0.00022997,2]
[313031815,1706653066780,-317.92623857,0.00022997,2]
[313031816,1706653066799,-156.59385791,0.00022997,2]
[313031817,1706653066819,-232.21892278,0.00022997,2]
[313031818,1706653066839,-430.74837803,0.00022997,2]
[313031819,1706653066860,-8179.71152361,0.00022997,2]
[313031820,1706653066886,-220.06807054,0.00022997,2]
[313031821,1706653066906,-240.96212358,0.00022997,2]
[313031822,1706653066925,-156.10718307,0.00022997,2]
[313031823,1706653066946,-155.0,0.00022997,2]
[313031824,1706653066966,-299.41307297,0.00022997,2]
[313031825,1706653066985,-156.16813554,0.00022997,2]
[313031826,1706653067005,-358.15361486,0.00022997,2]
[313031827,1706653067030,-384.0598108,0.00022997,2]
[313031828,1706653067051,-158.8993738,0.00022997,2]
[313031829,1706653067073,-155.43236907,0.00022997,2]
[313031830,1706653067094,-268.84831641,0.00022997,2]
[313031831,1706653067114,-210.8048654,0.00022997,2]
[313031832,1706653067137,-1062.1210392,0.00022997,2]
[313031833,1706653067157,-3333.08138673,0.00022997,2]
[313031834,1706653067176,-337.26118422,0.00022997,2]
[313031835,1706653067197,-3031.15764822,0.00022997,2]
[313031836,1706653067218,-155.944763,0.00022997,2]
[313031837,1706653067237,-678.6596887,0.00022997,2]
[313031838,1706653067258,-155.43310874,0.00022997,2]
[313031839,1706653067282,-155.0,0.00022997,2]
[313031840,1706653067306,-276.84231513,0.00022997,2]
[313031841,1706653067329,-158.5191036,0.00022997,2]
[313031842,1706653067349,-4623.10070962,0.00022997,2]
[313031843,1706653067370,-191.82538755,0.00022997,2]
[313031844,1706653067390,-247.85570535,0.00022997,2]
[313031845,1706653067410,-242.59258344,0.00022997,2]
[313031846,1706653067430,-177.95955757,0.00022997,2]
[313031847,1706653067455,-1000.0,0.00022997,2]
[313031848,1706653067475,-155.71638194,0.00022997,2]
[313031849,1706653067496,-2214.95155014,0.00022997,2]
[313031850,1706653067520,-167.84192789,0.00022997,2]
[313031851,1706653067540,-3629.47558166,0.00022997,2]
[313031852,1706653067559,-197.72412545,0.00022997,2]
[313031853,1706653067579,-885.28401879,0.00022997,2]
[313031854,1706653067600,-184.44865705,0.00022997,2]
[313031855,1706653067625,-172.29367536,0.00022997,2]
[313031856,1706653067646,-189.58736514,0.00022997,2]
[313031857,1706653067667,-283.65098728,0.00022997,2]
[313031858,1706653067687,-221.66172776,0.00022997,2]
[313031859,1706653067712,-160.84016664,0.00022997,2]
[313031860,1706653067732,-296.68841754,0.00022997,2]
[313031861,1706653067754,-205.43932251,0.00022997,2]
[313031862,1706653067774,-160.80794475,0.00022997,2]
[313031863,1706653067794,-202.88847941,0.00022997,2]
[313031864,1706653067814,-155.36261242,0.00022997,2]
[313031865,1706653067834,-204.35837107,0.00022997,2]
[313031866,1706653067855,-156.64936517,0.00022997,2]
[313031867,1706653067876,-209.87013274,0.00022997,2]
[313031868,1706653067896,-222.39757032,0.00022997,2]
[313031869,1706653067916,-304.10598474,0.00022997,2]
[313031870,1706653067936,-249.27308463,0.00022998,2]
[313031871,1706653067958,-245.41926485,0.00022998,2]
[313031872,1706653067978,-10799.80478532,0.00022998,2]
[313031873,1706653067999,-260485.46914935,0.00023,2]
[313031874,1706653068020,-150.0,0.00023,2]
[313031875,1706653069293,18708.29764038,0.00022884,2]
[313031876,1706653076132,150.0,0.00023,2]
[313031877,1706653090390,500.0,0.00022894,2]
[313031878,1706653153555,155.86825696,0.00022987,2]
[313031881,1706653199052,150.0,0.00023,2]
[313031882,1706653322072,272.58,0.00023,2]
[313031900,1706653831774,-225.74682749,0.00023085,2]
[313031901,1706653831784,-2888.94375109,0.00023085,2]
[313031902,1706653831793,-458.90010274,0.00023086,2]
[313031903,1706653831802,-347.73672192,0.0002313,2]
[313031904,1706653831812,-263.94731272,0.000241,2]
[313031905,1706653831821,-203.0,0.00024297,2]
[313031906,1706653831830,-291.81,0.00024384,2]
[313031925,1706653832034,-549.66,0.00024384,2]
[313031927,1706653832044,-378.39,0.00024657,2]
[313031929,1706653832053,-535.21760683,0.00025,2]
[313031931,1706653832063,-323.68150614,0.00025,2]
[313031933,1706653832072,-450.0,0.00025,3]
[313031935,1706653832081,-774.51666312,0.00025,2]
[313031937,1706653832093,-373.51188536,0.00025,2]
[313031941,1706653832117,-756.50471303,0.00025,2]
[313031943,1706653832126,-1587.92031382,0.00025,2]
[313031945,1706653832135,-1948.68,0.00025293,2]
[313031947,1706653832144,-683.26336284,0.00025296,2]
[313031949,1706653832156,-1638.20663716,0.00025296,2]
[313031950,1706653832165,-179.99,0.00025296,5]
[313031951,1706653832173,-2648.53257238,0.000255,2]
[313031952,1706653832184,-289.46742762,0.000255,2]
[313031953,1706653832193,-212.01342756,0.000255,2]
[313031954,1706653832217,-10076.2024,0.000255,2]
[313031955,1706653832228,-1126.07915188,0.000255,2]
[313031956,1706653832346,-1300.70502056,0.000255,2]
[313031957,1706653832355,-171.07864913,0.00026,7]